bitfinex-derivatives/quotes_ETHF0:USTF0_20251103
["timestamp","ask_amount","ask_price","bid_price","bid_amount"]
[1762131067910,0.46533333,3884.3,3884.2,0.00194572]
[1762131068114,0.00189333,3884.3,3884.2,0.23134572]
[1762131068416,0.21519333,3884.3,3884.2,0.00194572]
[1762131069207,1.07890241,3884.3,3884.2,0.00194572]
[1762131070510,0.86560241,3884.3,3884.2,0.23134572]
[1762131070716,1.07890241,3884.3,3884.2,0.23134572]
[1762131070916,1.07890241,3884.3,3884.2,0.00194572]
[1762131071321,0.86560241,3884.3,3884.2,0.23134572]
[1762131071511,0.00189333,3884.3,3884.2,0.23134572]
[1762131072517,0.2133,3883.4,3883.3,3.2078]
[1762131072718,1.07700908,3883.4,3883.3,3.2078]
[1762131073410,1.07700908,3883.4,3882.8,3.2078]
[1762131073613,0.2133,3883.4,3883.1,0.46357]
[1762131073921,0.67685,3883.4,3882.9,0.4636]
[1762131074118,0.67685,3883.4,3883.0,0.46359]
[1762131074317,1.54055908,3883.4,3883.0,0.46359]
[1762131074920,0.46358,3883.2,3882.8,3.2108215]
[1762131075121,1.32726908,3883.4,3882.8,3.2108215]
[1762131075419,0.86370908,3883.4,3883.0,0.46359]
[1762131076020,0.86370908,3883.4,3883.1,0.46358]
[1762131076218,0.86370908,3883.4,3883.3,0.2255]
[1762131076624,0.86370908,3883.4,3882.9,0.4636]
[1762131076625,1.07690908,3883.4,3882.9,0.4636]
[1762131076922,0.86370908,3883.4,3883.0,0.46359]
[1762131077122,0.86370908,3883.4,3883.1,0.46358]
[1762131078822,0.86370908,3883.4,3882.8,3.2108215]
[1762131079124,0.1414,3883.5,3883.1,0.46358]
[1762131079322,0.1414,3883.5,3883.0,0.46359]
[1762131079523,1.00510908,3883.5,3883.1,0.46358]
[1762131079723,0.1414,3883.5,3883.1,0.46358]
[1762131080324,0.1414,3883.5,3882.8,3.2108215]
[1762131081019,0.1414,3883.5,3883.2,0.46357]
[1762131081328,0.1414,3883.5,3883.4,0.2255]
[1762131081624,0.2132,3883.4,3883.3,0.46355]
[1762131082025,0.2132,3883.4,3883.1,0.46358]
[1762131082326,0.2132,3883.4,3883.2,0.46357]
[1762131083026,0.2132,3883.3,3883.2,0.46357]
[1762131084820,1.00510908,3883.5,3883.3,0.46356]
[1762131085124,0.1414,3883.5,3883.3,0.46356]
[1762131085321,0.1414,3884.0,3883.9,0.2364]
[1762131085516,0.42689528,3884.0,3883.9,0.2364]
[1762131086725,0.86370908,3884.4,3884.2,0.2364]
[1762131087025,0.28751693,3884.3,3884.2,0.2364]
[1762131088028,0.52261693,3884.3,3884.2,0.2364]
[1762131088230,0.52261693,3884.3,3884.0,0.46347]
[1762131088429,0.2856236,3884.2,3884.0,0.46347]
[1762131088821,0.2856236,3884.2,3884.1,0.2364]
[1762131091431,0.2351,3883.6,3883.5,3.2078]
[1762131091630,0.52144425,3883.6,3883.5,3.2078]
[1762131092326,0.52139267,3883.6,3883.5,3.2078]
[1762131093933,0.28629267,3883.6,3883.5,0.2364]
[1762131094624,0.3751,3883.5,3883.4,8.95]
[1762131094824,0.66139267,3883.5,3883.4,8.95]
[1762131095831,0.66139267,3883.5,3883.3,0.46356]
[1762131096032,0.28629267,3883.4,3883.3,0.46356]
[1762131096233,0.28629267,3883.4,3883.3,9.41356]
[1762131096830,0.28629267,3883.4,3883.3,9.64996]
[1762131097032,0.14,3883.5,3883.4,0.2364]
[1762131097232,0.14,3883.5,3883.4,9.1864]
[1762131097431,0.4263296,3883.5,3883.4,9.1864]
[1762131098635,0.6614296,3883.5,3883.4,9.1864]
[1762131099035,0.6614296,3883.5,3883.4,8.95]
[1762131099236,0.6614296,3883.5,3883.3,0.46355]
[1762131099437,0.3751,3883.5,3883.4,8.95]
[1762131099637,0.66146592,3883.5,3883.4,8.95]
[1762131100234,0.28636592,3883.5,3883.4,9.1864]
[1762131100735,0.42636592,3883.5,3883.4,9.1864]
[1762131101438,0.42636592,3883.5,3883.4,0.2364]
[1762131101636,0.42636592,3883.5,3883.4,9.1864]
[1762131101837,0.66146592,3883.5,3883.4,8.95]
[1762131103034,0.66146592,3883.5,3883.4,8.951]
[1762131104037,0.2351,3883.2,3883.1,3.2078]
[1762131104246,0.2351,3882.9,3882.8,1.31523642]
[1762131104539,0.2351,3882.9,3882.3,1.79126257]
[1762131104540,0.2351,3882.4,3882.3,3.2078]
[1762131104932,1.61201598,3882.4,3882.3,10.2588]
[1762131105336,1.32576019,3882.4,3882.3,10.26185431]
[1762131106238,1.6119099,3882.4,3882.3,0.00305431]
[1762131106431,2.17123207,3882.4,3882.3,0.00305431]
[1762131106634,2.17123207,3882.4,3882.3,5.48705431]
[1762131107038,1.08057188,3882.4,3882.3,5.48705431]
[1762131107246,2.17123207,3882.4,3882.3,5.48705431]
[1762131107437,2.17086515,3882.4,3882.3,5.48705431]
[1762131107638,2.17086515,3882.4,3882.3,0.00305431]
[1762131108040,1.6119099,3882.4,3882.3,0.00305431]
[1762131109037,1.6119099,3882.4,3882.3,5.00305431]
[1762131109433,1.6119099,3882.4,3882.3,0.00305431]
[1762131109637,1.6119099,3882.4,3882.3,8.96805431]
[1762131111442,1.32576019,3882.4,3882.3,9.19045431]
[1762131111940,0.14,3882.5,3882.3,9.19045431]
[1762131111941,0.14,3882.5,3882.4,0.2224]
[1762131112136,3.2078,3882.6,3882.5,0.2224]
[1762131112342,4.43846019,3883.0,3882.5,0.2224]
[1762131112542,0.2295,3881.6,3881.5,0.47123068]
[1762131112742,1.32016019,3881.6,3881.5,0.47123068]
[1762131113548,1.32016019,3881.6,3881.5,0.47383002]
[1762131114849,3.2078,3881.8,3881.7,0.2224]
[1762131116651,0.142,3882.0,3881.9,0.2224]
[1762131116847,1.09066019,3882.4,3881.9,0.68612]
[1762131117352,1.09066019,3882.4,3882.0,8.984]
[1762131119356,1.09066019,3882.4,3882.3,0.2224]
[1762131119556,1.32016019,3882.4,3882.0,12.1918]
[1762131119751,1.32016019,3882.4,3882.0,8.984]
[1762131120454,1.32016019,3882.4,3881.9,0.46372]
[1762131120652,1.32016019,3882.4,3881.5,3.77823002]
[1762131120653,1.23266019,3882.0,3881.5,3.68163002]
[1762131120860,1.32016019,3881.6,3881.5,3.68163002]
[1762131121054,1.32016019,3881.6,3881.5,7.74263002]
[1762131121452,1.32016019,3881.6,3881.5,9.45883002]
[1762131121855,3.3498,3882.0,3881.9,0.2224]
[1762131122053,1.23266019,3882.0,3881.9,0.2224]
[1762131122457,0.2295,3881.9,3881.6,0.46376]
[1762131124259,0.2295,3881.9,3881.7,8.988]
[1762131124762,0.2295,3881.8,3881.6,0.46376]
[1762131124955,0.2295,3881.8,3881.7,8.986]
[1762131125553,0.2295,3881.6,3881.5,0.47383002]
[1762131125861,1.32016019,3881.6,3881.5,0.47383002]
[1762131127258,3.3498,3882.0,3881.5,0.69623002]
[1762131127561,1.32016019,3881.6,3881.5,0.47383002]
[1762131128156,3.3498,3882.0,3881.5,0.69623002]
[1762131128364,3.3498,3882.0,3881.5,0.93760002]
[1762131128365,0.3715,3882.0,3881.5,0.93760002]
[1762131128561,0.2295,3881.7,3881.6,9.012]
[1762131129155,0.2295,3881.7,3881.5,0.93760002]
[1762131129359,0.2295,3881.6,3881.5,0.47383002]
[1762131129561,0.2295,3881.6,3881.5,9.48583002]
[1762131130256,0.2295,3881.6,3881.5,0.47383002]
[1762131130462,0.2295,3881.6,3881.5,9.48583002]
[1762131131062,0.2295,3881.6,3881.5,0.47383002]
[1762131131257,3.4373,3881.6,3881.5,0.47383002]
[1762131131563,3.72253557,3881.6,3881.5,0.47383002]
[1762131132660,0.51473557,3881.6,3881.5,0.47383002]
[1762131133165,1.07452987,3881.6,3881.5,0.47383002]
[1762131134261,0.28523557,3881.6,3881.5,0.69623002]
[1762131134465,0.51473557,3881.6,3881.5,0.47383002]
[1762131135168,0.51473557,3881.6,3881.5,1.16000002]
[1762131135169,0.28523557,3881.6,3881.5,1.16000002]
[1762131135464,3.2078,3881.3,3880.1,1.79126257]
[1762131135671,4.72156175,3880.2,3879.5,0.0966]
[1762131135881,4.72156175,3879.6,3879.5,0.0966]
[1762131136167,5.56744712,3879.6,3879.5,0.0966]
[1762131136466,5.56744712,3879.6,3879.5,0.09850824]
[1762131136467,5.57016392,3879.6,3879.5,0.09850824]
[1762131139464,5.57016392,3879.6,3879.5,0.00190824]
[1762131139763,5.57016392,3879.6,3879.0,0.1313]
[1762131139966,3.2078,3879.1,3879.0,0.1313]
[1762131140665,3.2078,3879.1,3879.0,0.13432313]
[1762131141966,3.49181188,3879.1,3879.0,0.13432313]
[1762131142163,3.2078,3879.1,3879.0,0.35232313]
[1762131148065,3.2078,3879.1,3879.0,0.13432313]
[1762131148273,3.49145307,3879.1,3879.0,0.00302313]
[1762131150372,4.58422187,3879.1,3879.0,0.00302313]
[1762131150570,4.58422187,3879.1,3877.3,3.2078]
[1762131150768,3.2078,3877.8,3877.6,0.46424]
[1762131150968,1.0927688,3877.7,3877.6,0.46424]
[1762131151168,1.0927688,3877.7,3877.5,0.1331]
[1762131151671,1.0927688,3877.7,3877.5,0.60051429]
[1762131151978,1.0927688,3879.4,3877.5,0.60051429]
[1762131151979,3.2078,3878.2,3878.1,0.68948]
[1762131152179,3.2078,3878.2,3878.1,0.2253]
[1762131152377,4.3005688,3878.2,3878.1,0.2253]
[1762131152578,4.3005688,3878.2,3878.1,0.68948]
[1762131154377,4.3005688,3878.2,3878.0,0.1331]
[1762131157279,0.28345234,3878.1,3878.0,0.1331]
[1762131157476,1.37622114,3878.1,3877.5,0.13626429]
[1762131157670,4.3005688,3877.6,3877.5,0.13626429]
[1762131158382,4.58403062,3877.6,3877.5,0.13626429]
[1762131159175,3.49126182,3877.6,3877.5,0.13626429]
[1762131162575,4.58403062,3877.6,3877.5,0.13626429]
[1762131163176,3.49126182,3877.6,3877.5,0.36156429]
[1762131165986,3.49126182,3877.6,3877.5,0.13626429]
[1762131166190,4.07870782,3877.6,3877.5,0.13626429]
[1762131166386,4.94639549,3877.6,3877.5,0.13626429]
[1762131166583,4.94639549,3877.6,3877.5,0.36346429]
[1762131167482,4.94639549,3877.6,3877.5,0.13626429]
[1762131168892,4.07870782,3877.6,3877.5,0.13626429]
[1762131169092,4.94639549,3877.6,3877.5,0.13626429]
[1762131169294,5.14824542,3877.6,3877.5,0.13626429]
[1762131169887,5.14824542,3877.6,3877.5,0.00316429]
[1762131170088,5.14824542,3877.6,3877.5,0.14316429]
[1762131170594,4.94639549,3877.6,3877.5,0.14316429]
[1762131171299,4.94639549,3877.6,3877.5,0.37036429]
[1762131171796,4.94639549,3877.6,3877.5,0.14316429]
[1762131174295,4.94639549,3877.6,3877.5,0.00316429]
[1762131174494,4.66293367,3877.6,3877.5,0.00316429]
[1762131174692,4.94791131,3877.6,3877.5,0.00316429]
[1762131176095,4.94791131,3877.6,3877.5,0.14316429]
[1762131178098,4.94791131,3877.6,3877.5,0.00316429]
[1762131180303,4.94791131,3877.6,3877.5,0.14316429]
[1762131180689,4.94791131,3877.6,3877.5,0.00316429]
[1762131180903,0.46429,3877.2,3877.1,0.00765567]
[1762131181093,0.46429,3877.2,3876.5,0.13989559]
[1762131181094,0.46434,3876.8,3876.5,0.13989559]
[1762131181296,4.07548767,3876.6,3876.5,0.13989559]
[1762131181504,4.94791131,3876.6,3876.5,0.36709559]
[1762131182003,4.94997303,3876.6,3876.5,0.36924988]
[1762131183202,4.94997303,3876.6,3876.5,0.14204988]
[1762131183393,4.95066369,3876.6,3876.5,0.14204988]
[1762131184500,5.81835136,3876.6,3876.5,0.00894988]
[1762131184803,0.4644,3876.3,3876.0,0.14]
[1762131184997,5.81835136,3876.6,3876.0,0.14]
[1762131184998,4.94317534,3876.1,3876.0,0.14]
[1762131185198,5.81628964,3876.1,3876.0,0.14]
[1762131185708,5.81628964,3876.1,3876.0,0.00324452]
[1762131186201,5.81628964,3876.1,3875.1,0.46454]
[1762131186202,0.46447,3875.8,3875.1,0.46454]
[1762131186391,0.46447,3875.8,3875.0,0.14]
[1762131186392,3.2078,3875.6,3875.5,0.14]
[1762131186595,4.36115597,3875.6,3875.5,0.14]
[1762131186792,5.69332364,3875.6,3875.5,0.14]
[1762131187002,5.81738061,3875.6,3875.0,0.14]
[1762131187203,9.30950474,3875.7,3874.7,0.02580878]
[1762131187204,4.94317534,3875.1,3874.7,0.02580878]
[1762131187399,9.3896683,3875.0,3874.7,0.02580878]
[1762131187597,0.2856683,3874.9,3874.8,0.2272]
[1762131188000,0.2856683,3874.9,3874.8,0.69178]
[1762131188304,9.104,3875.0,3874.9,0.2272]
[1762131188500,9.97168767,3875.0,3874.9,0.2272]
[1762131188706,10.25647743,3875.0,3874.9,0.2272]
[1762131189104,9.97168767,3875.0,3874.7,0.02580878]
[1762131189302,0.2846022,3874.9,3874.7,0.02580878]
[1762131189502,10.83937534,3875.0,3874.5,0.14]
[1762131189503,0.87566743,3874.8,3874.5,0.14]
[1762131189704,3.2078,3874.6,3874.5,0.3672]
[1762131189908,4.36008987,3874.6,3874.5,0.3672]
[1762131191214,4.07548767,3874.6,3874.5,0.3672]
[1762131191404,4.07548767,3874.6,3874.5,0.3703676]
[1762131192011,0.1294,3875.0,3874.9,0.46457]
[1762131192507,0.3547,3875.0,3874.9,0.46457]
[1762131192708,0.2253,3874.9,3874.5,0.0031676]
[1762131192909,1.09298767,3874.8,3874.7,0.46458]
[1762131193106,0.1294,3874.0,3873.6,0.47123068]
[1762131193308,1.09298767,3873.7,3873.6,0.93594068]
[1762131193817,0.1294,3874.0,3873.9,0.46469]
[1762131194306,0.13237602,3874.0,3873.9,0.46762418]
[1762131194502,0.35767602,3874.0,3873.9,0.00293418]
[1762131195920,0.13237602,3874.0,3873.9,0.00293418]
[1762131196303,0.36307602,3874.0,3873.9,0.00293418]
[1762131197011,0.13237602,3874.0,3873.9,0.00293418]
[1762131197209,0.36307602,3874.0,3873.9,0.00293418]
[1762131199224,0.1294,3874.5,3873.9,0.00293418]
[1762131199520,0.2307,3874.3,3874.2,0.46464]
[1762131199832,0.1294,3874.5,3874.4,0.46462]
[1762131200323,0.1321186,3874.5,3874.4,0.46462]
[1762131201127,0.1321186,3874.5,3874.3,0.46462]
[1762131201321,0.3622,3874.0,3873.9,3.21073418]
[1762131201519,0.3622,3874.0,3873.9,0.00293418]
[1762131203515,0.1315,3874.0,3873.9,0.00293418]
[1762131204124,0.3622,3874.0,3873.9,0.00293418]
[1762131204725,0.1315,3874.0,3873.9,0.00293418]
[1762131207329,0.3452,3874.0,3873.9,0.00293418]
[1762131207927,0.1315,3874.0,3873.9,0.00293418]
[1762131208329,0.1315,3874.0,3873.9,9.15693418]
[1762131210631,0.1315,3874.0,3873.9,12.99893418]
[1762131210832,0.1315,3874.0,3873.9,12.99293418]
[1762131211825,0.1321186,3874.5,3874.4,0.46462]
[1762131212030,0.1321186,3874.5,3874.4,3.67242]
[1762131212231,0.1294,3875.5,3875.3,0.46451]
[1762131212435,0.3431,3875.5,3875.4,9.164]
[1762131213338,0.34566249,3875.5,3875.4,9.164]
[1762131214040,0.2137,3874.9,3874.8,9.63056]
[1762131214241,0.1325,3875.0,3874.8,9.63056]
[1762131214437,0.1325,3875.0,3874.8,12.83836]
[1762131214830,0.1325,3875.0,3874.8,9.63056]
[1762131215537,0.51053005,3874.9,3874.8,0.46456]
[1762131215739,0.2137,3874.8,3874.7,0.46458]
[1762131216236,0.1325,3874.5,3874.4,3.2078]
[1762131216732,0.1325,3874.5,3874.4,3.67242]
[1762131216933,0.1325,3874.5,3874.4,12.83242]
[1762131217840,0.1325,3874.5,3874.4,12.83142]
[1762131219537,0.1325,3874.5,3874.4,12.82542]
[1762131219928,0.1325,3874.5,3874.4,12.82442]
[1762131220133,0.1325,3874.5,3874.4,3.67242]
[1762131220328,0.13196249,3875.5,3875.3,0.46451]
[1762131220536,0.34566249,3875.5,3875.4,9.163]
[1762131221543,0.2137,3875.2,3875.1,0.46454]
[1762131221735,0.2137,3875.2,3875.1,9.64154]
[1762131222137,0.2137,3875.2,3875.1,0.46454]
[1762131222637,0.1325,3875.0,3874.6,3.2078]
[1762131222834,0.1325,3875.0,3874.7,9.177]
[1762131223143,0.2137,3874.9,3874.8,9.64057]
[1762131223343,0.2137,3874.9,3874.8,9.63857]
[1762131224137,0.2137,3874.9,3874.8,0.46457]
[1762131224831,0.1298,3874.5,3874.3,0.46463]
[1762131225038,0.1298,3874.5,3874.4,9.172]
[1762131230946,0.1325,3875.0,3874.4,9.172]
[1762131230947,0.1325,3875.0,3874.4,14.17554]
[1762131231146,0.1325,3875.0,3874.6,3.2078]
[1762131231346,0.1325,3875.0,3874.9,0.46456]
[1762131231546,0.1325,3875.0,3874.9,9.62056]
[1762131232555,3.2078,3876.3,3874.9,1.5188587]
[1762131232740,0.1298,3875.5,3875.4,3.2078]
[1762131233050,0.1298,3875.5,3875.4,9.192]
[1762131233647,0.1328168,3875.5,3875.4,9.192]
[1762131234544,0.1328168,3875.5,3875.3,0.4645]
[1762131234843,0.1328168,3875.5,3875.4,9.198]
[1762131235744,0.1328168,3875.5,3875.3,0.4645]
[1762131235951,0.1328168,3875.5,3875.4,9.197]
[1762131236355,0.1328168,3875.5,3875.3,0.4645]
[1762131236554,0.1328168,3875.5,3875.4,9.194]
[1762131236746,0.1328168,3875.5,3875.3,0.4645]
[1762131237055,0.1328168,3875.5,3875.4,9.19]
[1762131241357,0.1328168,3875.5,3875.3,0.4645]
[1762131241550,0.1328168,3875.5,3875.4,9.179]
[1762131242956,0.1328168,3875.5,3875.4,9.174]
[1762131244659,0.2308,3875.2,3875.1,3.67234]
[1762131244857,0.2308,3875.2,3875.1,12.84534]
[1762131245258,0.2308,3875.2,3875.1,12.3808]
[1762131245458,0.2308,3875.2,3875.1,3.2078]
[1762131245755,0.2308,3875.2,3873.9,13.7258054]
[1762131245756,0.1298,3875.0,3874.8,0.46457]
[1762131246062,0.1298,3874.5,3874.3,0.46463]
[1762131246262,0.1298,3874.5,3874.4,9.169]
[1762131248757,0.1298,3874.5,3874.4,9.168]
[1762131249056,0.1298,3874.0,3873.9,0.00293418]
[1762131249363,0.3606,3874.0,3873.9,9.16793418]
[1762131249560,0.3606,3874.0,3873.9,9.17293418]
[1762131249959,0.1298,3874.0,3873.9,9.17293418]
[1762131252357,0.1298,3874.0,3873.9,0.00293418]
[1762131252863,0.1298,3874.0,3873.9,9.16593418]
[1762131253470,0.1298,3874.5,3874.4,0.46462]
[1762131253764,0.1298,3874.5,3874.4,9.62462]
[1762131255359,0.1298,3874.5,3874.1,3.2078]
[1762131255664,0.1302,3874.0,3873.9,0.00293418]
[1762131255860,0.1302,3874.0,3873.9,9.62661418]
[1762131260465,0.1298,3874.5,3874.4,0.46462]
[1762131260666,0.1298,3874.5,3874.4,9.61362]
[1762131260857,0.1298,3875.0,3874.9,0.46456]
[1762131261057,0.1298,3875.0,3874.9,9.61556]
[1762131262073,0.1298,3875.0,3874.9,9.151]
[1762131265369,0.3625,3875.0,3874.9,9.151]
[1762131265567,0.3625,3875.0,3874.9,9.143]
[1762131265767,0.1298,3875.0,3874.5,3.2078]
[1762131265969,0.2294,3874.7,3874.5,3.2078]
[1762131266273,0.1298,3875.0,3874.6,9.142]
[1762131266274,0.46457,3874.9,3874.6,9.142]
[1762131267173,0.46457,3874.9,3874.6,9.60659]
[1762131267372,0.46457,3874.9,3874.6,9.142]
[1762131267871,0.1356,3874.5,3874.3,0.46463]
[1762131268072,0.1356,3874.5,3874.4,9.142]
[1762131269070,0.1356,3874.5,3874.4,12.984]
[1762131269575,0.1356,3874.5,3874.4,12.978]
[1762131274470,0.1356,3874.5,3874.4,14.07233676]
[1762131275075,0.1356,3874.5,3874.4,14.06033676]
[1762131275273,0.1356,3874.5,3874.4,4.93633676]
[1762131275575,0.1356,3874.5,3874.4,14.06033676]
[1762131276579,0.1356,3874.5,3874.4,4.93633676]
[1762131276875,0.1356,3874.5,3874.4,12.962]
[1762131277477,0.1356,3874.5,3874.4,14.05633676]
[1762131277677,0.1356,3874.5,3874.4,12.962]
[1762131278181,0.1356,3874.5,3874.4,3.842]
[1762131278381,0.1356,3874.5,3874.4,12.962]
[1762131278580,3.3376,3875.0,3874.4,12.962]
[1762131278782,0.1298,3875.0,3874.9,1.09433676]
[1762131278978,0.1298,3875.0,3874.9,14.05233676]
[1762131279585,0.1298,3875.0,3874.9,12.958]
[1762131279882,0.1298,3875.0,3874.9,12.96]
[1762131280274,0.1298,3875.0,3874.9,3.842]
[1762131280481,0.1298,3875.0,3874.9,12.961]
[1762131281276,0.1298,3875.0,3874.9,12.958]
[1762131281586,0.1298,3875.0,3874.9,3.842]
[1762131281879,0.1298,3875.0,3874.9,12.957]
[1762131282085,0.1298,3875.0,3874.9,12.956]
[1762131282786,0.1298,3875.0,3874.9,12.954]
[1762131283783,0.1298,3875.0,3874.9,3.842]
[1762131283990,0.1298,3875.0,3874.9,12.953]
[1762131285290,0.1298,3875.0,3874.9,12.952]
[1762131286601,0.1298,3875.0,3874.9,9.11]
[1762131288703,0.1298,3875.0,3874.8,0.46457]
[1762131289002,0.3592,3875.0,3874.9,9.102]
[1762131289794,0.82376,3875.0,3874.5,3.6724]
[1762131290001,0.82376,3875.0,3874.6,9.1]
[1762131290694,0.82376,3875.0,3874.5,3.2078]
[1762131290895,0.1345,3874.5,3874.3,0.46463]
[1762131291103,0.1345,3874.5,3874.4,9.099]
[1762131291497,0.2166,3874.4,3874.3,0.46463]
[1762131291697,0.2166,3874.4,3874.3,9.56563]
[1762131291997,0.1345,3874.5,3874.3,9.56563]
[1762131293995,0.1345,3874.5,3874.3,0.46463]
[1762131294193,0.1345,3874.5,3874.4,9.098]
[1762131295102,0.1345,3874.5,3874.3,0.46463]
[1762131295298,0.1345,3874.5,3874.4,9.101]
[1762131295500,0.1298,3875.0,3874.4,9.101]
[1762131295501,0.1298,3875.0,3874.8,0.46457]
[1762131295701,0.1298,3875.0,3874.9,9.101]
[1762131297801,0.3464,3875.0,3874.9,9.101]
[1762131298799,0.1298,3875.0,3874.9,9.101]
[1762131299006,0.1345,3874.5,3874.2,1.32907215]
[1762131299201,0.1345,3874.5,3874.3,9.56064]
[1762131300306,0.1345,3874.5,3874.3,0.46464]
[1762131300507,0.1345,3874.5,3874.4,9.093]
[1762131300702,0.1345,3874.5,3874.3,0.46464]
[1762131301002,0.1345,3874.5,3874.1,3.2078]
[1762131301003,0.68125,3874.2,3874.1,3.2078]
[1762131301204,0.3511,3874.0,3873.9,0.00293418]
[1762131301410,0.1345,3874.0,3873.9,9.09793418]
[1762131302202,0.3511,3874.0,3873.9,9.09793418]
[1762131303310,0.3511,3874.0,3873.9,0.00293418]
[1762131303609,0.3511,3874.0,3873.9,9.09993418]
[1762131304805,0.3511,3874.0,3873.9,0.00293418]
[1762131310618,0.3511,3874.0,3873.6,0.47123068]
[1762131310619,0.68131,3873.7,3873.6,0.47123068]
[1762131310812,0.2166,3873.7,3873.6,0.47123068]
[1762131311714,0.2166,3873.7,3873.6,0.47394241]
[1762131316014,1.08560311,3873.7,3873.6,0.47394241]
[1762131318211,0.2366,3872.9,3872.8,3.842]
[1762131318411,0.1379,3872.0,3871.5,2.4959]
[1762131318709,0.1379,3872.0,3869.2,11.63108]
[1762131318710,0.46501,3871.2,3870.0,0.1387]
[1762131318916,3.2078,3870.1,3870.0,0.3528]
[1762131319215,3.2096584,3870.1,3870.0,0.35613604]
[1762131319415,3.2096584,3870.1,3869.5,1.00770311]
[1762131319416,3.2096584,3870.1,3869.5,0.1387]
[1762131319721,0.0018584,3870.1,3870.0,0.1387]
[1762131319911,3.2096584,3870.1,3870.0,0.1387]
[1762131320416,3.2096584,3870.1,3870.0,0.14109938]
[1762131322015,4.54238295,3870.1,3870.0,0.14109938]
[1762131322523,3.2096584,3870.1,3870.0,0.14109938]
[1762131323221,3.2096584,3870.1,3870.0,0.35519938]
[1762131323614,3.2096584,3870.1,3870.0,0.82034938]
[1762131324315,3.2096584,3870.1,3870.0,0.14109938]
[1762131324515,3.2096584,3870.1,3870.0,0.35519938]
[1762131325528,3.2096584,3870.1,3870.0,3.70169938]
[1762131327124,3.2096584,3870.1,3870.0,13.04369938]
[1762131327320,3.2096584,3870.1,3870.0,3.70169938]
[1762131327521,3.2096584,3870.1,3870.0,13.04169938]
[1762131327724,3.2096584,3870.1,3870.0,13.04069938]
[1762131328025,3.2096584,3870.1,3870.0,9.48009938]
[1762131328324,3.2096584,3870.1,3870.0,0.14109938]
[1762131328518,3.2096584,3870.1,3870.0,9.47709938]
[1762131329328,3.2096584,3870.1,3870.0,0.14109938]
[1762131332220,3.2096584,3870.1,3869.0,0.60397]
[1762131332221,3.67306,3869.1,3869.0,1e-08]
[1762131332424,4.54052455,3869.1,3868.5,0.1387]
[1762131332628,1.16299,3869.7,3868.5,0.1387]
[1762131332629,3.2078,3868.6,3868.5,0.1387]
[1762131332825,3.2078,3868.6,3868.5,0.1784]
[1762131333216,3.2078,3868.6,3868.5,0.18106984]
[1762131333915,3.2078,3868.6,3868.0,0.1784]
[1762131334116,4.54052455,3868.1,3867.5,0.1784]
[1762131334316,3.2078,3867.6,3866.4,0.1784]
[1762131334530,3.2078,3866.5,3866.4,0.94609]
[1762131334723,9.56303421,3869.0,3866.9,0.3021]
[1762131334927,3.2078,3867.1,3867.0,0.1784]
[1762131335238,4.54052455,3867.1,3866.4,0.1784]
[1762131335427,3.2078,3866.7,3866.5,3.3465]
[1762131335928,3.2078,3866.7,3866.5,0.46556]
[1762131336328,3.2078,3866.7,3866.5,0.4689063]
[1762131336722,3.2078,3866.7,3866.6,3.6486]
[1762131336919,3.2078,3866.7,3866.5,0.4689063]
[1762131337833,0.0238,3866.6,3866.5,0.0033463]
[1762131338038,0.0238,3866.6,3865.8,0.1784]
[1762131338224,3.2316,3865.9,3865.8,0.1784]
[1762131338930,0.0238,3865.8,3865.7,0.47123068]
[1762131339125,3.20974239,3865.9,3865.8,0.1784]
[1762131339729,3.23354239,3865.9,3865.8,0.1784]
[1762131339922,0.0238,3865.8,3865.7,0.47391525]
[1762131340229,3.20974239,3865.9,3865.8,0.1784]
[1762131340431,3.23354239,3865.9,3865.8,0.1784]
[1762131340936,0.0238,3865.8,3865.7,0.47391525]
[1762131342747,3.20974239,3865.9,3864.7,0.02587556]
[1762131342748,0.0238,3864.8,3864.7,0.02587556]
[1762131342937,3.2316,3864.8,3864.7,0.02587556]
[1762131343334,3.2078,3864.8,3864.7,0.32797556]
[1762131343735,3.2078,3865.3,3865.2,0.3021]
[1762131344040,3.2078,3865.3,3865.2,0.4805]
[1762131344235,3.2316,3865.3,3865.2,0.1784]
[1762131344433,0.48959,3864.8,3863.4,0.1784]
[1762131344632,3.2078,3864.0,3863.9,0.46588]
[1762131344936,3.2078,3864.0,3863.5,3.3465]
[1762131344937,3.2078,3864.4,3864.3,0.3601]
[1762131345132,3.2078,3864.4,3864.3,0.82594]
[1762131345437,0.1566,3865.8,3864.8,0.46577]
[1762131345438,3.2078,3865.1,3864.8,0.46577]
[1762131345937,3.2078,3865.1,3864.8,3.81227]
[1762131346242,3.2078,3865.1,3864.8,0.46578]
[1762131346736,3.2078,3865.1,3864.3,0.00241218]
[1762131346737,0.1568,3864.4,3864.3,0.00241218]
[1762131346937,3.2078,3864.9,3864.8,0.3585]
[1762131347437,3.2078,3864.9,3864.8,3.705]
[1762131348337,3.2078,3865.3,3865.2,1.03933]
[1762131348540,3.2078,3865.3,3865.2,4.38583]
[1762131348733,3.2078,3865.3,3865.2,3.9201]
[1762131349542,3.2078,3865.3,3865.2,13.4001]
[1762131350053,3.2078,3865.7,3865.3,0.46572]
[1762131350345,3.2078,3865.7,3865.3,3.81222]
[1762131350548,3.2078,3865.7,3865.4,3.3465]
[1762131351050,3.2078,3865.7,3865.5,3.3465]
[1762131351246,3.2078,3865.7,3865.4,3.3465]
[1762131351642,3.2078,3865.7,3865.5,3.3465]
[1762131351844,3.2078,3865.7,3865.4,3.3465]
[1762131352348,3.2078,3865.7,3865.5,12.8115]
[1762131352548,3.2078,3865.7,3865.5,9.465]
[1762131352742,3.2078,3865.7,3865.6,3.3465]
[1762131353150,3.48925998,3865.7,3865.5,9.465]
[1762131353446,3.2078,3865.7,3865.6,3.3465]
[1762131353639,3.48929235,3865.7,3865.6,4.17068]
[1762131353843,3.48929235,3865.7,3865.6,0.82418]
[1762131354041,3.2078,3865.7,3865.6,0.3585]
[1762131354243,3.48941002,3865.7,3865.6,0.3585]